bitfinex/quotes_BTCUSD_20251209
["timestamp","ask_amount","ask_price","bid_price","bid_amount"]
[1765286694632,0.00023682,90758.0,90757.0,0.22036867]
[1765286695127,0.00023682,90758.0,90757.0,0.24234493]
[1765286695330,0.00023682,90758.0,90757.0,0.28200244]
[1765286696131,0.00123682,90758.0,90757.0,0.28200244]
[1765286696283,0.00023682,90758.0,90757.0,0.28300244]
[1765286696750,0.00023682,90758.0,90757.0,0.28400244]
[1765286697763,0.00023682,90758.0,90757.0,0.24434493]
[1765286698147,0.00023682,90758.0,90757.0,0.22236867]
[1765286700346,0.00023682,90758.0,90757.0,0.23236685]
[1765286700854,0.00023682,90758.0,90757.0,0.23397972]
[1765286701048,0.00023682,90758.0,90757.0,0.24470918]
[1765286701283,0.00023682,90758.0,90757.0,0.234711]
[1765286701461,0.00023682,90758.0,90757.0,0.3053868]
[1765286702033,0.00023682,90758.0,90757.0,0.2459578]
[1765286702181,0.00023682,90758.0,90757.0,0.30538524]
[1765286702991,0.00023682,90758.0,90757.0,0.30338524]
[1765286703195,0.00023682,90758.0,90757.0,0.2449578]
[1765286703621,0.00023682,90758.0,90757.0,0.2439578]
[1765286703823,0.00023682,90758.0,90757.0,0.2449578]
[1765286704479,0.00023682,90758.0,90757.0,0.2459578]
[1765286705033,0.00023682,90758.0,90757.0,0.2449578]
[1765286705429,0.00023682,90758.0,90757.0,0.2459578]
[1765286706052,0.00023682,90758.0,90757.0,0.2449578]
[1765286706342,0.00023682,90758.0,90757.0,0.2439578]
[1765286706511,0.00023682,90758.0,90757.0,0.2449578]
[1765286706853,0.00023682,90758.0,90757.0,0.2459578]
[1765286707050,0.00023682,90758.0,90757.0,0.2449578]
[1765286707492,0.00023682,90758.0,90757.0,0.2459578]
[1765286708184,0.00023682,90758.0,90757.0,0.2449578]
[1765286708332,0.00023682,90758.0,90757.0,0.2459578]
[1765286711900,0.00023682,90758.0,90757.0,0.25037238]
[1765286714277,0.00023682,90758.0,90757.0,0.24937238]
[1765286715056,0.00023682,90758.0,90757.0,0.25037238]
[1765286715256,0.00023682,90758.0,90757.0,0.24937238]
[1765286715472,0.00023682,90758.0,90757.0,0.25037238]
[1765286725859,0.00023682,90758.0,90757.0,0.54107238]
[1765286726740,0.00023682,90758.0,90757.0,0.54007238]
[1765286726950,0.00023682,90758.0,90757.0,0.54207238]
[1765286727167,0.00023682,90758.0,90757.0,0.54707238]
[1765286727352,0.00023682,90758.0,90757.0,0.54407238]
[1765286727727,0.00023682,90758.0,90757.0,0.54707238]
[1765286728387,0.00023682,90758.0,90757.0,0.66327238]
[1765286728619,0.00023682,90758.0,90757.0,0.54707238]
[1765286730817,0.00023682,90758.0,90757.0,0.64362432]
[1765286731241,0.00023682,90758.0,90757.0,0.35292432]
[1765286731456,0.00023682,90758.0,90757.0,0.27077238]
[1765286732726,0.00023682,90758.0,90757.0,0.26577238]
[1765286733158,0.00023682,90758.0,90757.0,0.26777238]
[1765286733580,0.00023682,90758.0,90757.0,0.26877238]
[1765286733827,0.00023682,90758.0,90757.0,0.26577238]
[1765286734048,0.00023682,90758.0,90757.0,0.26777238]
[1765286734239,0.00023682,90758.0,90757.0,0.27077238]
[1765286735260,0.00023682,90758.0,90757.0,0.56147238]
[1765286746399,0.00023682,90758.0,90757.0,0.66008267]
[1765286747060,1e-08,90760.0,90757.0,0.72260566]
[1765286747270,0.0004,90780.0,90779.0,0.53299153]
[1765286747422,0.0004,90780.0,90779.0,0.5520044]
[1765286748282,0.0004,90780.0,90779.0,0.23192632]
[1765286748512,0.0004,90780.0,90779.0,0.24932632]
[1765286748647,0.0004,90780.0,90779.0,0.26571748]
[1765286750159,0.0004,90780.0,90779.0,0.55741748]
[1765286750359,0.0004,90780.0,90779.0,0.56041748]
[1765286750580,0.0004,90780.0,90779.0,0.55741748]
[1765286750998,0.0004,90780.0,90779.0,0.55941748]
[1765286751581,0.0004,90780.0,90779.0,0.55841748]
[1765286752144,1e-08,90780.0,90779.0,0.62194047]
[1765286752569,1e-08,90780.0,90779.0,0.65035476]
[1765286753140,0.00065109,90780.0,90779.0,0.65035476]
[1765286753570,1e-08,90780.0,90779.0,0.64935476]
[1765286753759,0.0004,90790.0,90789.0,0.59351035]
[1765286753906,0.0004,90790.0,90789.0,0.59512322]
[1765286754103,0.0004,90810.0,90797.0,0.01101357]
[1765286754104,1e-08,90800.0,90797.0,0.01101357]
[1765286754384,1e-08,90800.0,90799.0,0.59707886]
[1765286754975,1e-08,90800.0,90799.0,0.60149046]
[1765286755182,1e-08,90800.0,90799.0,0.53896747]
[1765286755385,1e-08,90800.0,90799.0,0.55636747]
[1765286756002,1e-08,90800.0,90799.0,0.53896747]
[1765286756183,1e-08,90800.0,90799.0,0.55636747]
[1765286756362,1e-08,90800.0,90799.0,0.55936747]
[1765286756702,1e-08,90800.0,90799.0,0.56236747]
[1765286756874,1e-08,90800.0,90799.0,0.55936747]
[1765286757046,1e-08,90800.0,90799.0,0.55836747]
[1765286757247,1e-08,90800.0,90799.0,0.56036747]
[1765286757809,1e-08,90800.0,90799.0,0.24127961]
[1765286757964,1e-08,90800.0,90799.0,0.22226674]
[1765286758167,1e-08,90800.0,90799.0,0.23966674]
[1765286758380,1e-08,90800.0,90799.0,0.23766674]
[1765286758787,1e-08,90800.0,90799.0,0.0194]
[1765286759210,1e-08,90800.0,90799.0,0.004]
[1765286759556,1e-08,90800.0,90799.0,0.0194]
[1765286759739,1e-08,90800.0,90799.0,0.0174]
[1765286759907,0.0015917,90800.0,90799.0,0.0174]
[1765286760109,0.01160491,90800.0,90797.0,0.01101357]
[1765286760315,0.23327865,90800.0,90799.0,0.0174]
[1765286760516,0.01301322,90800.0,90799.0,0.0174]
[1765286760691,1e-08,90800.0,90799.0,0.0174]
[1765286760893,1e-08,90800.0,90794.0,0.01101394]
[1765286760894,0.01101394,90794.0,90790.0,0.01101442]
[1765286761116,0.01101345,90798.0,90793.0,0.01101406]
[1765286761117,0.01101357,90797.0,90793.0,0.01101406]
[1765286761315,0.01101357,90797.0,90791.0,0.0284143]
[1765286761316,0.01101382,90795.0,90791.0,0.0284143]
[1765286761527,0.00200001,90800.0,90797.0,0.01101357]
[1765286761742,0.00200001,90800.0,90798.0,0.22026874]
[1765286762053,0.00200001,90800.0,90799.0,0.02202667]
[1765286762054,0.00300001,90800.0,90799.0,0.02202667]
[1765286762230,0.00100001,90800.0,90799.0,0.02202667]
[1765286762433,1e-08,90800.0,90799.0,0.02202667]
[1765286762637,0.00300001,90800.0,90799.0,0.03942667]
[1765286762839,0.00100001,90800.0,90799.0,0.03942667]
[1765286763236,0.00200001,90800.0,90799.0,0.28166967]
[1765286763439,0.00300001,90800.0,90799.0,0.259643]
[1765286763649,0.00300001,90800.0,90799.0,0.23766674]
[1765286764392,0.00300001,90800.0,90799.0,0.259643]
[1765286765895,0.1978706,90902.0,90799.0,0.259643]
[1765286765898,0.0031,90820.0,90819.0,0.23021641]
[1765286766056,0.0031,90820.0,90819.0,0.58505227]
[1765286766223,0.0031,90820.0,90819.0,0.53996928]
[1765286766224,0.00428312,90820.0,90819.0,0.53996928]
[1765286766421,0.00428312,90820.0,90819.0,0.60249227]
[1765286766684,0.00428312,90820.0,90819.0,0.60690301]
[1765286767185,0.00466875,90820.0,90819.0,0.60690301]
[1765286767356,0.00466875,90820.0,90819.0,0.60790301]
[1765286767744,0.0004,90830.0,90829.0,0.24217025]
[1765286767953,0.00051558,90830.0,90829.0,0.24378312]
[1765286769706,0.00051558,90830.0,90829.0,0.24578312]
[1765286770013,0.00051558,90830.0,90829.0,0.24778312]
[1765286770576,0.00051558,90830.0,90829.0,0.22419399]
[1765286770981,0.00051558,90830.0,90829.0,0.24163399]
[1765286771600,0.00051558,90830.0,90829.0,0.23963399]
[1765286772117,0.00051558,90830.0,90829.0,0.23763399]
[1765286772526,0.00151558,90830.0,90829.0,0.23763399]
[1765286772884,0.00051558,90830.0,90829.0,0.23763399]
[1765286773293,0.00081126,90830.0,90829.0,0.23763399]
[1765286773521,0.22019541,90829.0,90809.0,0.03931499]
[1765286773738,0.22019541,90829.0,90811.0,0.01101188]
[1765286773739,0.23124025,90815.0,90811.0,0.01101188]
[1765286773955,0.22022196,90818.0,90815.0,0.01101139]
[1765286774153,0.23122523,90821.0,90816.0,0.01101127]
[1765286774369,0.23122523,90821.0,90814.0,0.23124085]
[1765286774370,0.30069456,90829.0,90824.0,0.22020553]
[1765286774371,0.51089596,90829.0,90824.0,0.22020553]
[1765286774572,0.01100994,90827.0,90824.0,0.0110103]
[1765286774877,0.01101006,90826.0,90823.0,0.01101042]
[1765286775073,0.01101054,90822.0,90817.0,0.23123322]
[1765286775234,0.01101054,90822.0,90818.0,0.23123121]
[1765286775573,0.01101054,90822.0,90814.0,0.22022825]
[1765286775574,0.30171006,90826.0,90823.0,0.22020808]
[1765286775748,0.0102733,90825.0,90823.0,0.22020808]
[1765286776341,0.0102733,90825.0,90823.0,0.2312185]
[1765286776533,0.0102733,90827.0,90825.0,0.22020233]
[1765286776724,0.2907,90826.0,90824.0,0.23121542]
[1765286776929,0.0122733,90825.0,90824.0,0.23121542]
[1765286777243,0.002,90825.0,90824.0,0.23121542]
[1765286778273,0.001,90826.0,90824.0,0.23121542]
[1765286778471,0.00023655,90828.0,90824.0,0.23121542]
[1765286778472,0.00023655,90828.0,90827.0,0.22019883]
[1765286779980,0.00123655,90828.0,90827.0,0.22019883]
[1765286780293,0.00123655,90828.0,90826.0,0.22020126]
[1765286780494,0.00123655,90828.0,90827.0,0.01744]
[1765286780695,0.00023655,90828.0,90827.0,0.01744]
[1765286781066,0.00023655,90828.0,90827.0,0.23763883]
[1765286782095,0.00123655,90828.0,90827.0,0.23763883]
[1765286782312,0.00223655,90828.0,90827.0,0.23763883]
[1765286783705,0.00023655,90828.0,90827.0,0.23763883]
[1765286788970,0.00023655,90828.0,90827.0,0.25961509]
[1765286789175,0.00023655,90828.0,90827.0,0.26122796]
[1765286789979,0.00023655,90828.0,90827.0,0.2392517]
[1765286790312,0.00023655,90828.0,90827.0,0.2402517]
[1765286790513,0.00023655,90828.0,90827.0,0.26222796]
[1765286791002,0.00023655,90828.0,90827.0,0.26122796]
[1765286791344,0.00023655,90828.0,90827.0,0.2392517]
[1765286792043,0.00023655,90828.0,90827.0,0.2218117]
[1765286792272,0.00023655,90828.0,90827.0,0.01944]
[1765286792432,0.22043296,90828.0,90827.0,0.002]
[1765286792643,0.22043296,90828.0,90822.0,0.23121923]
[1765286792644,0.2312153,90825.0,90822.0,0.2312194]
[1765286792792,0.01100994,90827.0,90822.0,0.02845054]
[1765286792994,0.00023655,90828.0,90827.0,0.22119883]
[1765286793390,0.00123655,90828.0,90827.0,0.22019883]
[1765286794002,0.00023655,90828.0,90827.0,0.22019883]
[1765286794404,0.00023655,90828.0,90827.0,0.24217509]
[1765286794664,0.00123655,90828.0,90827.0,0.24378796]
[1765286795256,0.00123655,90828.0,90827.0,0.2218117]
[1765286795652,0.00123655,90828.0,90827.0,0.23763883]
[1765286795908,0.00023655,90828.0,90827.0,0.23763883]
[1765286797844,0.00023655,90828.0,90827.0,0.22019883]
[1765286798045,0.00023655,90828.0,90827.0,0.23763883]
[1765286798784,0.00023655,90828.0,90827.0,0.23863883]
[1765286799202,0.00023655,90828.0,90827.0,0.23763883]
[1765286801214,0.00023655,90828.0,90823.0,0.01101042]
[1765286801215,0.01101018,90825.0,90819.0,0.01101091]
[1765286801445,0.23121177,90826.0,90822.0,0.01101054]
[1765286801582,0.00023655,90828.0,90825.0,0.01101018]
[1765286801783,0.00023655,90828.0,90827.0,0.22019883]
[1765286802199,0.00023655,90828.0,90825.0,0.01101018]
[1765286802384,0.00023655,90828.0,90827.0,0.22019883]
[1765286802588,0.00123655,90828.0,90827.0,0.22019883]
[1765286802793,0.00123655,90828.0,90826.0,0.22019886]
[1765286803172,0.00123655,90828.0,90827.0,0.22019883]
[1765286803609,0.00223655,90828.0,90827.0,0.22019883]
[1765286803812,0.00123655,90828.0,90827.0,0.2218117]
[1765286804010,0.00123655,90828.0,90827.0,0.24378796]
[1765286804345,0.00223655,90828.0,90827.0,0.24378796]
[1765286804547,0.00223655,90828.0,90827.0,0.2218117]
[1765286804767,0.00223655,90828.0,90827.0,0.2392517]
[1765286804954,0.00123655,90828.0,90827.0,0.2392517]
[1765286805904,0.00023655,90828.0,90827.0,0.2392517]
[1765286808303,0.00023655,90828.0,90827.0,0.26122796]
[1765286808631,0.00023655,90828.0,90827.0,0.2392517]
[1765286809384,0.00023655,90828.0,90827.0,0.26122796]
[1765286810147,0.00023655,90828.0,90827.0,0.2392517]
[1765286811508,0.00023655,90828.0,90827.0,0.22019883]
[1765286811808,0.00023655,90828.0,90827.0,0.23763883]
[1765286812972,0.00123655,90828.0,90827.0,0.23763883]
[1765286814917,0.00123655,90828.0,90827.0,0.2392517]
[1765286817490,0.00123655,90828.0,90827.0,0.26122796]
[1765286818123,0.00123655,90828.0,90827.0,0.2392517]
[1765286818963,0.00123655,90828.0,90827.0,0.26122796]
[1765286819437,0.00123655,90828.0,90827.0,0.2392517]
[1765286820025,0.00123655,90828.0,90827.0,0.26122796]
[1765286820292,0.00123655,90828.0,90827.0,0.2392517]
[1765286820715,0.00123655,90828.0,90827.0,0.26122796]
[1765286821121,0.00123655,90828.0,90827.0,0.2392517]
[1765286828209,0.00123655,90828.0,90827.0,0.26122796]
[1765286828872,0.00123655,90828.0,90827.0,0.2392517]
[1765286829043,0.00123655,90828.0,90827.0,0.26122796]
[1765286831990,0.00123655,90828.0,90827.0,0.2392517]
[1765286832224,0.00123655,90828.0,90827.0,0.2218117]
[1765286832430,0.00123655,90828.0,90827.0,0.2392517]
[1765286833344,0.00123655,90828.0,90827.0,0.2218117]
[1765286833526,0.00123655,90828.0,90827.0,0.2392517]
[1765286836377,0.00023655,90828.0,90827.0,0.2392517]
[1765286843227,0.00023655,90828.0,90827.0,0.22019883]
[1765286843386,0.00023655,90828.0,90823.0,0.01101042]
[1765286843387,0.23121595,90826.0,90821.0,0.01101066]
[1765286843588,0.23121595,90826.0,90800.0,0.38138397]
[1765286843589,0.01101054,90822.0,90819.0,0.01744]
[1765286843848,0.01101054,90822.0,90818.0,0.23122968]
[1765286844048,0.23121926,90823.0,90819.0,0.23122799]
[1765286844379,0.01101018,90825.0,90821.0,0.01101066]
[1765286844646,0.23053097,90825.0,90822.0,0.2312213]
[1765286844811,0.22020521,90825.0,90822.0,0.2312213]
[1765286845148,0.22020712,90824.0,90821.0,0.23121951]
[1765286845314,0.22020888,90823.0,90821.0,0.01101066]
[1765286845509,0.22020888,90823.0,90820.0,0.23122637]
[1765286845510,0.2312193,90823.0,90820.0,0.23122637]
[1765286845717,0.2312219,90822.0,90818.0,0.23122938]
[1765286846226,0.220216,90820.0,90817.0,0.23123423]
[1765286846430,0.2202189,90819.0,90817.0,0.01101115]
[1765286846595,0.220216,90820.0,90817.0,0.23123396]
[1765286846795,0.22021906,90819.0,90817.0,0.23123407]
[1765286847073,0.22021906,90819.0,90816.0,0.01744]
[1765286847457,0.22021906,90819.0,90817.0,0.001]
[1765286847778,0.01101066,90821.0,90817.0,0.01101115]
[1765286847918,0.22022308,90817.0,90816.0,0.01744]
[1765286848115,0.22022308,90817.0,90797.0,0.22027156]
[1765286848116,0.01101273,90804.0,90797.0,0.01101357]
[1765286848346,0.23126763,90804.0,90801.0,0.01101309]
[1765286848516,0.23126763,90804.0,90800.0,0.231273]
[1765286848704,0.23126856,90804.0,90800.0,0.231273]
[1765286848939,0.01101273,90804.0,90801.0,0.23127279]
[1765286849341,0.22025705,90803.0,90801.0,0.23127279]
[1765286849623,0.01101236,90807.0,90802.0,0.01101297]
[1765286849771,0.22025048,90806.0,90803.0,0.22025492]
[1765286850089,0.2312602,90807.0,90804.0,0.22025245]
[1765286850290,0.23127045,90803.0,90799.0,0.22026604]
[1765286850453,0.23127373,90802.0,90799.0,0.23127791]
[1765286850856,0.22026058,90802.0,90799.0,0.23127791]
[1765286851060,0.22026261,90801.0,90798.0,0.24872235]
[1765286851416,0.01101309,90801.0,90799.0,0.22026599]
[1765286851573,0.01112862,90801.0,90798.0,0.01744]
[1765286851779,0.00011553,90801.0,90800.0,0.22026431]
[1765286851973,0.00011553,90801.0,90798.0,0.02845345]
[1765286851974,0.22037962,90801.0,90798.0,0.02845345]
[1765286852187,0.22037962,90801.0,90781.0,0.01101552]
[1765286852188,0.01101491,90786.0,90781.0,0.01101552]
[1765286852389,0.25,90800.0,90784.0,0.02845515]
[1765286852390,0.01101455,90789.0,90784.0,0.02845515]
[1765286852698,0.2202915,90789.0,90784.0,0.02845515]
[1765286852921,0.01101406,90793.0,90786.0,0.01101491]
[1765286853137,0.0110137,90796.0,90790.0,0.01101442]
[1765286853326,0.2907,90809.0,90790.0,0.01101442]
[1765286853327,0.01101224,90808.0,90798.0,0.01101345]
[1765286853496,0.25,90810.0,90799.0,0.22026582]
[1765286853497,0.2312534,90810.0,90799.0,0.22026582]
[1765286853667,0.22024354,90809.0,90799.0,0.22026582]
[1765286853862,0.22024507,90808.0,90799.0,0.22026582]
[1765286854066,0.01101236,90807.0,90799.0,0.22026582]
[1765286854263,0.011012,90810.0,90799.0,0.22026582]
[1765286854616,0.22022545,90817.0,90800.0,0.02202643]
[1765286854817,0.01101139,90815.0,90800.0,0.00161287]
[1765286855211,0.00111553,90801.0,90800.0,0.00161287]
[1765286855514,0.00111553,90801.0,90800.0,0.22187718]
[1765286856117,0.00211553,90801.0,90800.0,0.22187718]
[1765286856627,0.00011553,90801.0,90800.0,0.22187718]
[1765286856811,0.00111553,90801.0,90800.0,0.22187718]
[1765286857369,0.00211553,90801.0,90800.0,0.22187718]
[1765286863376,0.00211553,90801.0,90800.0,0.24385344]
[1765286863613,0.00211553,90801.0,90800.0,0.22187718]
[1765286864389,0.00011553,90801.0,90800.0,0.22187718]
[1765286864678,0.00011553,90801.0,90800.0,0.22387718]
[1765286864886,0.00011553,90801.0,90800.0,0.22487718]
[1765286865102,0.00011553,90801.0,90800.0,0.22287718]
[1765286865303,0.00011553,90801.0,90800.0,0.22187718]
[1765286865482,0.00011553,90801.0,90800.0,0.22287718]
[1765286866085,0.00011553,90801.0,90800.0,0.22187718]
[1765286866319,0.00011553,90801.0,90800.0,0.22287718]
[1765286866975,0.00011553,90801.0,90800.0,0.22487718]
[1765286867438,0.00011553,90801.0,90800.0,0.24685344]
[1765286870924,0.00011553,90801.0,90800.0,0.02658913]
[1765286871298,0.00011553,90801.0,90800.0,0.24685344]
[1765286871696,0.00011553,90801.0,90800.0,0.24585344]
[1765286872509,0.00011553,90801.0,90800.0,0.24385344]
[1765286886204,0.00011553,90801.0,90800.0,0.22187718]
[1765286886404,0.00011553,90801.0,90800.0,0.23927718]
[1765286886767,0.00011553,90801.0,90800.0,0.26125344]
[1765286890368,0.22027412,90796.0,90794.0,0.1456]
[1765286890507,0.22027644,90795.0,90794.0,0.1456]
[1765286890715,0.22027644,90795.0,90794.0,0.16304]
[1765286890920,0.23130372,90790.0,90786.0,0.34669189]
[1765286891271,0.22027644,90795.0,90790.0,0.23130291]
[1765286891434,0.23128291,90798.0,90794.0,0.23129273]
[1765286891622,0.00011553,90801.0,90798.0,0.01101345]
[1765286891814,0.00011553,90801.0,90798.0,0.02845345]
[1765286891815,0.22037774,90801.0,90798.0,0.02845345]
[1765286892016,0.01112862,90801.0,90798.0,0.01744]
[1765286892236,0.22026665,90800.0,90798.0,0.01744]
[1765286892438,0.22026674,90799.0,90798.0,0.01744]
[1765286892635,0.01112862,90801.0,90798.0,0.01744]
[1765286892838,0.00011553,90801.0,90798.0,0.01744]
[1765286893045,0.01312862,90801.0,90798.0,0.01744]
[1765286893254,0.00011553,90801.0,90800.0,0.22026431]
[1765286894169,0.00111553,90801.0,90800.0,0.22026431]
[1765286894766,0.00011553,90801.0,90800.0,0.22026431]
[1765286894973,0.00111553,90801.0,90800.0,0.22026431]
[1765286895590,0.00211553,90801.0,90800.0,0.22026431]
[1765286896374,0.00111553,90801.0,90800.0,0.22026431]
[1765286896795,0.00211553,90801.0,90800.0,0.22026431]
[1765286897397,0.00211553,90801.0,90800.0,0.24224057]
[1765286899564,0.00211553,90801.0,90800.0,0.22026431]
[1765286900612,0.23339051,90801.0,90798.0,0.01744]
[1765286900840,0.22026674,90799.0,90798.0,0.01744]
[1765286901044,0.22026669,90800.0,90798.0,0.01744]
[1765286901244,0.23339065,90801.0,90798.0,0.23770871]
[1765286901471,0.23339065,90801.0,90800.0,0.22026431]
[1765286901472,0.00011553,90801.0,90800.0,0.22026431]
[1765286901878,0.00111553,90801.0,90800.0,0.24224057]
[1765286902495,0.00011553,90801.0,90800.0,0.24224057]
[1765286902675,0.00111553,90801.0,90800.0,0.24224057]
[1765286902878,0.00211553,90801.0,90800.0,0.24224057]
[1765286903083,0.00111553,90801.0,90800.0,0.24224057]
[1765286903286,0.00011553,90801.0,90800.0,0.24224057]
[1765286911671,0.00011553,90801.0,90800.0,0.24385344]
[1765286914315,0.00011553,90801.0,90796.0,0.2312875]
[1765286914316,0.22030309,90785.0,90778.0,0.01101588]
[1765286914634,0.22030309,90785.0,90770.0,0.07876659]
[1765286914635,0.23132813,90781.0,90777.0,0.01744]
[1765286914796,0.22031769,90778.0,90777.0,0.01744]
[1765286915000,0.01101564,90780.0,90777.0,0.01744]
[1765286915242,0.23132952,90780.0,90777.0,0.01744]
[1765286915443,0.01101527,90783.0,90777.0,0.028456]
[1765286915600,0.01101539,90782.0,90779.0,0.01101576]
[1765286915809,0.23132338,90782.0,90779.0,0.01101576]
[1765286916231,0.001,90780.0,90779.0,0.01101576]
[1765286916649,0.01101491,90786.0,90779.0,0.23132976]
[1765286916851,0.01101479,90787.0,90782.0,0.01101539]
[1765286917201,0.23130811,90788.0,90782.0,0.23132316]
[1765286917417,0.23130811,90788.0,90784.0,0.22030313]
[1765286917623,0.23130811,90788.0,90780.0,0.01101564]
[1765286917624,0.30171394,90794.0,90791.0,0.0110143]
[1765286917833,0.2312991,90792.0,90789.0,0.23130526]
[1765286918048,0.23129794,90792.0,90789.0,0.01101455]
[1765286918258,0.23129794,90792.0,90789.0,0.23130554]
[1765286918410,0.01101382,90795.0,90792.0,0.23129772]
[1765286918572,0.23129263,90795.0,90792.0,0.23129778]
[1765286918776,0.2907,90796.0,90794.0,0.22027864]
[1765286919225,0.2907,90796.0,90793.0,0.01101406]
[1765286919434,0.22027701,90795.0,90793.0,0.01101406]
[1765286919636,0.23429083,90795.0,90792.0,0.23129766]
[1765286919841,0.01401382,90795.0,90792.0,0.01101418]
[1765286920049,0.01401382,90795.0,90794.0,0.00123229]
[1765286920241,0.003,90795.0,90794.0,0.00123229]
[1765286920642,0.003,90795.0,90794.0,0.22151116]
[1765286920844,0.004,90796.0,90795.0,0.22027644]
[1765286921061,0.004,90796.0,90794.0,0.22027881]
[1765286921212,0.003,90796.0,90795.0,0.22147914]
[1765286921652,0.52198042,90799.0,90796.0,0.23128544]
[1765286921856,0.23139205,90801.0,90798.0,0.22026916]
[1765286922029,0.22026528,90800.0,90798.0,0.00111392]
[1765286922238,0.22026528,90800.0,90797.0,0.23128516]
[1765286922841,0.003,90799.0,90797.0,0.23128516]
[1765286923517,0.003,90799.0,90798.0,0.22026916]
[1765286923723,0.003,90799.0,90797.0,0.23128516]
[1765286923997,0.2312777,90800.0,90796.0,0.2312873]
[1765286924207,0.01601321,90800.0,90796.0,0.0110137]
[1765286924366,0.01401321,90800.0,90797.0,0.22027159]
[1765286924686,0.005,90799.0,90798.0,0.22026911]
[1765286924883,0.005,90799.0,90797.0,0.23128516]
[1765286925069,0.22326431,90800.0,90796.0,0.23128672]
[1765286925255,0.22826431,90800.0,90796.0,0.23128672]
[1765286925457,0.22027045,90798.0,90794.0,0.01101394]
[1765286925661,0.01101321,90800.0,90796.0,0.0110137]
[1765286926039,0.003,90799.0,90797.0,0.23128331]
[1765286926390,0.003,90799.0,90798.0,0.22026916]
[1765286926928,0.008,90799.0,90798.0,0.22026916]
[1765286927141,0.005,90799.0,90798.0,0.22026916]
[1765286928807,0.008,90799.0,90797.0,0.23128331]
[1765286929179,0.008,90799.0,90798.0,0.22138308]
[1765286930099,0.008,90799.0,90798.0,0.00111392]
[1765286930410,0.005,90799.0,90798.0,0.00111392]
[1765286930541,0.22826674,90799.0,90798.0,0.00111392]
[1765286930952,0.22526674,90799.0,90798.0,0.00111392]
[1765286931285,0.22826674,90799.0,90798.0,0.00111392]
[1765286931466,0.008,90799.0,90798.0,0.00111392]
[1765286931841,0.22826674,90799.0,90798.0,0.00111392]
[1765286933908,0.22826674,90799.0,90798.0,0.22138308]
[1765286933909,0.008,90799.0,90798.0,0.22138308]
[1765286934982,0.008,90799.0,90798.0,0.22299595]
[1765286934983,0.005,90799.0,90798.0,0.22299595]
[1765286935182,0.005,90799.0,90798.0,0.23299413]
[1765286935388,0.007,90799.0,90798.0,0.23299413]
[1765286936373,0.002,90799.0,90798.0,0.23299413]
[1765286936574,0.005,90799.0,90798.0,0.23299413]
[1765286936988,0.00011553,90801.0,90800.0,0.24224057]
[1765286937195,0.00011553,90801.0,90800.0,0.26125344]
[1765286938051,0.00011553,90801.0,90800.0,0.26225344]
[1765286939731,0.00011553,90801.0,90800.0,0.26425344]
[1765286939930,0.00011553,90801.0,90800.0,0.26325344]
[1765286940157,0.00011553,90801.0,90800.0,0.26225344]
[1765286940561,0.00011553,90801.0,90800.0,0.26425344]
[1765286941033,0.00011553,90801.0,90800.0,0.24231718]
[1765286941762,0.00011553,90801.0,90800.0,0.24131718]
[1765286942351,0.00011553,90801.0,90800.0,0.24237192]
[1765286942557,0.00011553,90801.0,90800.0,0.24037192]
[1765286947622,0.00011553,90801.0,90800.0,0.2503701]
[1765286952097,0.00011553,90801.0,90800.0,0.26234818]
[1765286955133,0.00011553,90801.0,90800.0,0.24033192]
[1765286956088,0.00011553,90801.0,90800.0,0.26230818]
[1765286956289,0.00011553,90801.0,90800.0,0.24033192]
[1765286958351,0.00011553,90801.0,90800.0,0.26230818]
[1765286966213,0.00011553,90801.0,90800.0,0.2503301]
[1765286973920,0.00011553,90801.0,90800.0,0.26230818]
[1765286977122,0.00011553,90801.0,90800.0,0.40790818]
[1765286978535,0.00011553,90801.0,90800.0,0.77737477]
[1765286978710,0.00011553,90801.0,90800.0,0.69860818]
[1765286978912,0.00011553,90801.0,90800.0,0.70301982]
[1765286980134,0.00011553,90801.0,90800.0,0.70501982]
[1765286980339,0.00011553,90801.0,90800.0,0.70601982]
[1765286997040,0.00011553,90801.0,90800.0,0.68861982]
[1765286997241,0.00011553,90801.0,90800.0,0.41531982]
[1765286997443,0.00011553,90801.0,90800.0,0.39350818]
[1765286997796,0.00011553,90801.0,90800.0,0.38893192]
[1765286997998,0.00011553,90801.0,90800.0,0.41090818]
[1765286998386,0.00011553,90801.0,90800.0,0.40890818]
[1765286998796,0.00011553,90801.0,90800.0,0.40990818]
[1765286998997,0.00011553,90801.0,90800.0,0.40890818]
[1765286999382,0.00011553,90801.0,90800.0,0.41090818]
[1765286999598,0.00011553,90801.0,90800.0,0.40790818]
[1765286999914,0.00011553,90801.0,90800.0,0.41090818]
[1765287000988,0.00011553,90801.0,90800.0,0.26530818]
[1765287012779,0.00011553,90801.0,90800.0,0.70160818]
[1765287012982,0.00011553,90801.0,90800.0,0.81382428]
[1765287013633,0.00011553,90801.0,90800.0,0.73469667]
[1765287028010,0.23157764,90840.0,90800.0,0.73469667]
[1765287028011,1e-08,90871.0,90850.0,0.00099999]
[1765287028227,1e-08,90871.0,90839.0,0.1161]
[1765287028228,0.21999762,90911.0,90880.0,0.00099999]
[1765287028229,0.00670698,90910.0,90880.0,0.00099999]
[1765287028443,0.00670698,90910.0,90860.0,0.00099999]
[1765287028444,0.00440739,90939.0,90901.0,0.01100097]
[1765287028445,0.00020553,90904.0,90901.0,0.01100097]
[1765287028860,0.00020553,90904.0,90902.0,0.24363998]
[1765287029004,0.00020553,90904.0,90903.0,0.0236243]
[1765287029208,0.00020553,90904.0,90903.0,0.0411043]
[1765287029412,0.00020553,90904.0,90903.0,0.0236243]
[1765287029610,0.00020553,90904.0,90903.0,0.0411043]
[1765287030309,0.00020553,90904.0,90903.0,0.05101802]
[1765287030703,0.00020553,90904.0,90903.0,0.0629961]
[1765287030926,0.00120553,90904.0,90903.0,0.0629961]
[1765287031139,0.00220553,90904.0,90903.0,0.0629961]
[1765287031305,0.00220553,90904.0,90903.0,0.04101984]
[1765287032431,0.00220553,90904.0,90903.0,0.01748]
[1765287033409,0.00220553,90904.0,90902.0,0.22001505]
[1765287033610,0.00220553,90904.0,90901.0,0.01100097]
[1765287033611,0.00220553,90904.0,90903.0,0.23749474]
[1765287033813,0.00220553,90904.0,90903.0,0.01748]
[1765287034347,0.00120553,90904.0,90903.0,0.01748]
[1765287034697,0.22002271,90900.0,90893.0,0.00999818]
[1765287034895,0.01100097,90901.0,90881.0,0.02968241]
[1765287034896,0.01100134,90898.0,90894.0,0.01748]
[1765287035103,0.23103183,90897.0,90894.0,0.01748]
[1765287035345,0.23103183,90897.0,90882.0,0.02197626]
[1765287035346,0.01100303,90884.0,90875.0,0.01100412]
[1765287035543,0.22006557,90882.0,90875.0,0.01748]
[1765287035742,0.51076557,90882.0,90875.0,0.01748]
[1765287035916,0.01100545,90864.0,90858.0,0.23112988]
[1765287036119,0.01100545,90864.0,90859.0,0.04095178]
[1765287036344,0.23112197,90862.0,90860.0,0.02347178]